[Event "Titled Tuesday Blitz June 13 Late 2023"]
[White "Buchenau, Frank"]
[Black "Petersson, Kjell"]
[WhiteFideId "4604350"]
[BlackFideId "1705148"]
[WhiteElo "2157"]
[BlackElo "2005"]
[Result "1-0"]
[Round "11"]
[TimeControl "180+2"]
[Date "2023.06.13"]
[WhiteClock "0:01:10"]
[BlackClock "0:00:48"]
[Board "91"]

1. e4 {[%clk 0:03:00]}  c5 {[%clk 0:02:58]} 2. Nf3 {[%clk 0:03:00]}  d6 {[%clk 0:02:59]} 3. Bb5+ {[%clk 0:03:00]}  Nc6 {[%clk 0:02:56]} 4. O-O {[%clk 0:03:00]}  Bd7 {[%clk 0:02:51]} 5. Re1 {[%clk 0:02:57]}  a6 {[%clk 0:02:52]} 6. Bc4 {[%clk 0:02:57]}  g6 {[%clk 0:02:51]} 7. c3 {[%clk 0:02:56]}  Bg7 {[%clk 0:02:43]} 8. d4 {[%clk 0:02:55]}  Bg4 {[%clk 0:02:37]} 9. Bxf7+ {[%clk 0:02:50]}  Kf8 {[%clk 0:02:29]} 10. Bb3 {[%clk 0:02:41]}  cxd4 {[%clk 0:02:28]} 11. cxd4 {[%clk 0:02:41]}  Nxd4 {[%clk 0:02:24]} 12. Nxd4 {[%clk 0:02:25]}  Bxd1 {[%clk 0:02:14]} 13. Ne6+ {[%clk 0:02:24]}  Ke8 {[%clk 0:02:13]} 14. Nxg7+ {[%clk 0:02:07]}  Kd7 {[%clk 0:02:08]} 15. Rxd1 {[%clk 0:02:05]}  Qa5 {[%clk 0:01:48]} 16. Nc3 {[%clk 0:01:59]}  Nf6 {[%clk 0:01:44]} 17. Bf4 {[%clk 0:01:42]}  Nh5 {[%clk 0:01:41]} 18. Nxh5 {[%clk 0:01:27]}  Qxh5 {[%clk 0:01:41]} 19. e5 {[%clk 0:01:25]}  Rhf8 {[%clk 0:01:35]} 20. Nd5 {[%clk 0:01:19]}  Rae8 {[%clk 0:01:21]} 21. Rac1 {[%clk 0:01:14]}  Rxf4 {[%clk 0:00:55]} 22. Nb6+ {[%clk 0:01:10]}  Kd8 {[%clk 0:00:48]} 23. Rc8# {[%clk 0:01:10]} 1-0


[Site "https://www.chess.com"]

[Event "Titled Tuesday Blitz June 13 Late 2023"]
[White "Florianovitz, Derlei Alex"]
[Black "Fajdetic, Hrvoje"]
[WhiteFideId "2114178"]
[BlackFideId "14501945"]
[WhiteElo "1953"]
[BlackElo "2185"]
[Result "0-1"]
[Round "11"]
[TimeControl "180+2"]
[Date "2023.06.13"]
[WhiteClock "0:00:17"]
[BlackClock "0:00:09"]
[Board "94"]

1. e4 {[%clk 0:03:00]}  c5 {[%clk 0:02:11]} 2. Nf3 {[%clk 0:02:53]}  a6 {[%clk 0:02:11]} 3. d4 {[%clk 0:02:53]}  cxd4 {[%clk 0:02:12]} 4. Nxd4 {[%clk 0:02:53]}  Nf6 {[%clk 0:02:12]} 5. Nc3 {[%clk 0:02:53]}  e5 {[%clk 0:02:12]} 6. Nde2 {[%clk 0:02:48]}  Bb4 {[%clk 0:02:09]} 7. Qd3 {[%clk 0:02:44]}  d5 {[%clk 0:02:06]} 8. exd5 {[%clk 0:02:44]}  Qxd5 {[%clk 0:02:03]} 9. Qxd5 {[%clk 0:02:43]}  Nxd5 {[%clk 0:02:03]} 10. Bd2 {[%clk 0:02:43]}  Nxc3 {[%clk 0:02:00]} 11. Nxc3 {[%clk 0:02:44]}  Nc6 {[%clk 0:01:57]} 12. Bc4 {[%clk 0:02:41]}  Bf5 {[%clk 0:01:55]} 13. O-O-O {[%clk 0:02:41]}  Rc8 {[%clk 0:01:53]} 14. Nd5 {[%clk 0:02:32]}  Bxd2+ {[%clk 0:01:37]} 15. Rxd2 {[%clk 0:02:33]}  Nd4 {[%clk 0:01:29]} 16. Bb3 {[%clk 0:02:20]}  Rc5 {[%clk 0:01:27]} 17. Ne3 {[%clk 0:02:10]}  Nxb3+ {[%clk 0:01:19]} 18. axb3 {[%clk 0:02:08]}  Be6 {[%clk 0:01:17]} 19. Kb1 {[%clk 0:02:06]}  O-O {[%clk 0:01:15]} 20. Rhd1 {[%clk 0:02:04]}  f5 {[%clk 0:01:07]} 21. Rd8 {[%clk 0:02:02]}  f4 {[%clk 0:01:05]} 22. Rxf8+ {[%clk 0:01:54]}  Kxf8 {[%clk 0:01:06]} 23. Nf1 {[%clk 0:01:45]}  Bf5 {[%clk 0:01:02]} 24. Rd2 {[%clk 0:01:40]}  Ke7 {[%clk 0:01:01]} 25. Kc1 {[%clk 0:01:40]}  g5 {[%clk 0:00:59]} 26. b4 {[%clk 0:01:38]}  Rb5 {[%clk 0:00:52]} 27. c3 {[%clk 0:01:38]}  e4 {[%clk 0:00:45]} 28. Rd4 {[%clk 0:01:37]}  Re5 {[%clk 0:00:37]} 29. Kd2 {[%clk 0:01:35]}  Bd7 {[%clk 0:00:31]} 30. c4 {[%clk 0:01:30]}  Be6 {[%clk 0:00:27]} 31. b3 {[%clk 0:01:25]}  b5 {[%clk 0:00:24]} 32. Ke2 {[%clk 0:01:24]}  a5 {[%clk 0:00:20]} 33. bxa5 {[%clk 0:01:16]}  bxc4 {[%clk 0:00:20]} 34. bxc4 {[%clk 0:01:15]}  Kf6 {[%clk 0:00:19]} 35. g3 {[%clk 0:01:03]}  Kf5 {[%clk 0:00:18]} 36. a6 {[%clk 0:00:54]}  Ra5 {[%clk 0:00:17]} 37. Rd6 {[%clk 0:00:53]}  Bxc4+ {[%clk 0:00:16]} 38. Ke1 {[%clk 0:00:53]}  Ra1+ {[%clk 0:00:16]} 39. Rd1 {[%clk 0:00:50]}  Rxd1+ {[%clk 0:00:14]} 40. Kxd1 {[%clk 0:00:50]}  Bxa6 {[%clk 0:00:13]} 41. Nd2 {[%clk 0:00:47]}  e3 {[%clk 0:00:11]} 42. fxe3 {[%clk 0:00:46]}  fxe3 {[%clk 0:00:12]} 43. Nb3 {[%clk 0:00:43]}  Kg4 {[%clk 0:00:10]} 44. Nc5 {[%clk 0:00:41]}  Bc4 {[%clk 0:00:10]} 45. Nd7 {[%clk 0:00:36]}  Kh3 {[%clk 0:00:09]} 46. Ne5 {[%clk 0:00:35]}  Bb5 {[%clk 0:00:09]} 47. Nf7 {[%clk 0:00:34]}  g4 {[%clk 0:00:08]} 48. Ng5+ {[%clk 0:00:30]}  Kxh2 {[%clk 0:00:08]} 49. Nxh7 {[%clk 0:00:31]}  Kxg3 {[%clk 0:00:08]} 50. Ke1 {[%clk 0:00:29]}  Kh2 {[%clk 0:00:07]} 51. Ng5 {[%clk 0:00:28]}  g3 {[%clk 0:00:07]} 52. Nf3+ {[%clk 0:00:28]}  Kh1 {[%clk 0:00:07]} 53. Nh4 {[%clk 0:00:22]}  g2 {[%clk 0:00:07]} 54. Nxg2 {[%clk 0:00:22]}  Kxg2 {[%clk 0:00:08]} 55. Kd1 {[%clk 0:00:17]}  Kf2 {[%clk 0:00:09]} 0-1


[Site "https://www.chess.com"]

[Event "Titled Tuesday Blitz June 13 Late 2023"]
[White "Aung Thant Zin"]
[Black "Shapiro, Daniel"]
[WhiteFideId "13000063"]
[BlackFideId "2001780"]
[WhiteElo "2278"]
[BlackElo "2331"]
[Result "0-1"]
[Round "11"]
[TimeControl "180+2"]
[Date "2023.06.13"]
[WhiteClock "0:00:38"]
[BlackClock "0:00:20"]
[Board "95"]

1. e4 {[%clk 0:03:00]}  c5 {[%clk 0:02:59]} 2. Nf3 {[%clk 0:03:00]}  e6 {[%clk 0:02:58]} 3. d4 {[%clk 0:02:59]}  cxd4 {[%clk 0:02:58]} 4. Nxd4 {[%clk 0:03:00]}  a6 {[%clk 0:02:59]} 5. Nc3 {[%clk 0:03:00]}  Qc7 {[%clk 0:02:59]} 6. Be3 {[%clk 0:03:01]}  Nf6 {[%clk 0:02:56]} 7. Bd3 {[%clk 0:03:02]}  Bb4 {[%clk 0:02:56]} 8. O-O {[%clk 0:03:01]}  Bxc3 {[%clk 0:02:50]} 9. bxc3 {[%clk 0:02:59]}  Qxc3 {[%clk 0:02:49]} 10. Rb1 {[%clk 0:02:57]}  Qc7 {[%clk 0:02:46]} 11. h3 {[%clk 0:02:54]}  Nc6 {[%clk 0:02:45]} 12. Kh1 {[%clk 0:02:47]}  b5 {[%clk 0:02:39]} 13. f4 {[%clk 0:02:44]}  d6 {[%clk 0:02:38]} 14. Nxc6 {[%clk 0:02:41]}  Qxc6 {[%clk 0:02:38]} 15. Bd4 {[%clk 0:02:39]}  Bb7 {[%clk 0:02:33]} 16. Qe2 {[%clk 0:02:39]}  Nxe4 {[%clk 0:02:19]} 17. Kh2 {[%clk 0:02:30]}  O-O {[%clk 0:02:11]} 18. f5 {[%clk 0:02:20]}  e5 {[%clk 0:01:57]} 19. f6 {[%clk 0:02:10]}  exd4 {[%clk 0:01:49]} 20. fxg7 {[%clk 0:02:08]}  Rfe8 {[%clk 0:01:47]} 21. Qg4 {[%clk 0:01:57]}  d5 {[%clk 0:01:29]} 22. Qh4 {[%clk 0:01:22]}  Qg6 {[%clk 0:01:21]} 23. Rf4 {[%clk 0:01:19]}  Rac8 {[%clk 0:01:04]} 24. Rbf1 {[%clk 0:01:18]}  Rc7 {[%clk 0:01:05]} 25. Rg4 {[%clk 0:01:16]}  Qd6+ {[%clk 0:01:01]} 26. Kh1 {[%clk 0:01:14]}  Bc8 {[%clk 0:00:59]} 27. Rgf4 {[%clk 0:01:05]}  Qg6 {[%clk 0:00:52]} 28. R1f3 {[%clk 0:01:00]}  h6 {[%clk 0:00:39]} 29. Kh2 {[%clk 0:00:55]}  Qg5 {[%clk 0:00:34]} 30. Qe1 {[%clk 0:00:52]}  f5 {[%clk 0:00:31]} 31. Qg1 {[%clk 0:00:49]}  Rce7 {[%clk 0:00:30]} 32. Qxd4 {[%clk 0:00:48]}  Qxg7 {[%clk 0:00:23]} 33. Bxe4 {[%clk 0:00:45]}  Qxd4 {[%clk 0:00:22]} 34. Rg3+ {[%clk 0:00:38]}  Kh8 {[%clk 0:00:20]} 0-1


[Site "https://www.chess.com"]

[Event "Titled Tuesday Blitz June 13 Late 2023"]
[White "rionelG"]
[Black "Dias, Joao Batista"]
[BlackFideId "2108240"]
[WhiteElo "2226"]
[BlackElo "1907"]
[Result "1-0"]
[Round "11"]
[TimeControl "180+2"]
[Date "2023.06.13"]
[WhiteClock "0:01:40"]
[BlackClock "0:01:44"]
[Board "99"]

1. e4 {[%clk 0:03:00]}  e5 {[%clk 0:02:59]} 2. Nf3 {[%clk 0:03:00]}  d6 {[%clk 0:02:58]} 3. d4 {[%clk 0:03:01]}  exd4 {[%clk 0:02:58]} 4. Nxd4 {[%clk 0:03:02]}  Be7 {[%clk 0:02:59]} 5. Nc3 {[%clk 0:03:00]}  Nf6 {[%clk 0:02:59]} 6. Nf5 {[%clk 0:02:59]}  Bxf5 {[%clk 0:02:57]} 7. exf5 {[%clk 0:03:00]}  O-O {[%clk 0:02:57]} 8. Bd3 {[%clk 0:03:00]}  Nc6 {[%clk 0:02:57]} 9. Be3 {[%clk 0:02:59]}  Nb4 {[%clk 0:02:57]} 10. a3 {[%clk 0:02:55]}  Nxd3+ {[%clk 0:02:57]} 11. Qxd3 {[%clk 0:02:56]}  Re8 {[%clk 0:02:55]} 12. O-O-O {[%clk 0:02:55]}  Ng4 {[%clk 0:02:55]} 13. Kb1 {[%clk 0:02:38]}  Nxe3 {[%clk 0:02:54]} 14. Qxe3 {[%clk 0:02:38]}  Bf6 {[%clk 0:02:53]} 15. Qg3 {[%clk 0:02:38]}  Qd7 {[%clk 0:02:53]} 16. Qg4 {[%clk 0:02:34]}  Bxc3 {[%clk 0:02:52]} 17. bxc3 {[%clk 0:02:34]}  Re5 {[%clk 0:02:52]} 18. Rhe1 {[%clk 0:02:29]}  Qxf5 {[%clk 0:02:51]} 19. Qxf5 {[%clk 0:02:28]}  Rxf5 {[%clk 0:02:51]} 20. Re7 {[%clk 0:02:28]}  Rc5 {[%clk 0:02:48]} 21. Kb2 {[%clk 0:02:28]}  Kf8 {[%clk 0:02:48]} 22. Rde1 {[%clk 0:02:28]}  a5 {[%clk 0:02:42]} 23. a4 {[%clk 0:02:27]}  g6 {[%clk 0:02:41]} 24. f4 {[%clk 0:02:25]}  Rc8 {[%clk 0:02:36]} 25. g3 {[%clk 0:02:24]}  h5 {[%clk 0:02:36]} 26. Kb3 {[%clk 0:02:18]}  Kg7 {[%clk 0:02:34]} 27. Rd7 {[%clk 0:02:18]}  b5 {[%clk 0:02:20]} 28. Ree7 {[%clk 0:02:05]}  bxa4+ {[%clk 0:02:19]} 29. Kxa4 {[%clk 0:02:06]}  Rf5 {[%clk 0:02:19]} 30. Rxc7 {[%clk 0:01:59]}  Rxc7 {[%clk 0:02:19]} 31. Rxc7 {[%clk 0:02:00]}  h4 {[%clk 0:02:18]} 32. Ra7 {[%clk 0:01:59]}  hxg3 {[%clk 0:02:15]} 33. hxg3 {[%clk 0:01:58]}  Rc5 {[%clk 0:02:15]} 34. Kb3 {[%clk 0:01:57]}  Kf6 {[%clk 0:02:12]} 35. c4 {[%clk 0:01:57]}  Ke6 {[%clk 0:02:12]} 36. Kc3 {[%clk 0:01:57]}  f6 {[%clk 0:02:12]} 37. Kd4 {[%clk 0:01:56]}  Kf5 {[%clk 0:02:11]} 38. Ra6 {[%clk 0:01:53]}  g5 {[%clk 0:02:04]} 39. Rxd6 {[%clk 0:01:51]}  Rc8 {[%clk 0:02:04]} 40. Rd5+ {[%clk 0:01:46]}  Kg4 {[%clk 0:02:03]} 41. fxg5 {[%clk 0:01:46]}  fxg5 {[%clk 0:02:03]} 42. Rxa5 {[%clk 0:01:46]}  Rd8+ {[%clk 0:01:59]} 43. Rd5 {[%clk 0:01:43]}  Ra8 {[%clk 0:01:56]} 44. c5 {[%clk 0:01:42]}  Ra4+ {[%clk 0:01:52]} 45. c4 {[%clk 0:01:41]}  Ra1 {[%clk 0:01:51]} 46. c6 {[%clk 0:01:41]}  Ra7 {[%clk 0:01:44]} 47. Rd7 {[%clk 0:01:40]} 1-0


[Site "https://www.chess.com"]

[Event "Titled Tuesday Blitz June 13 Late 2023"]
[White "Quirke, Jeffrey"]
[Black "Sairam, Pranav"]
[WhiteFideId "2013029"]
[BlackFideId "30951330"]
[WhiteElo "2220"]
[BlackElo "1918"]
[Result "0-1"]
[Round "11"]
[TimeControl "180+2"]
[Date "2023.06.13"]
[WhiteClock "0:00:00"]
[BlackClock "0:00:04"]
[Board "102"]

1. e4 {[%clk 0:03:00]}  e5 {[%clk 0:02:56]} 2. d4 {[%clk 0:02:59]}  exd4 {[%clk 0:02:43]} 3. Qxd4 {[%clk 0:02:57]}  Nc6 {[%clk 0:02:43]} 4. Qe3 {[%clk 0:02:58]}  Nf6 {[%clk 0:02:38]} 5. Bd2 {[%clk 0:02:58]}  Qe7 {[%clk 0:02:21]} 6. Nc3 {[%clk 0:02:53]}  Qc5 {[%clk 0:02:07]} 7. Qg3 {[%clk 0:02:41]}  d6 {[%clk 0:01:03]} 8. O-O-O {[%clk 0:02:38]}  Ng4 {[%clk 0:00:57]} 9. Nd5 {[%clk 0:01:49]}  Nd4 {[%clk 0:00:55]} 10. Bc3 {[%clk 0:01:39]}  Nxf2 {[%clk 0:00:33]} 11. Bxd4 {[%clk 0:01:24]}  Nxh1 {[%clk 0:00:33]} 12. Qe3 {[%clk 0:00:59]}  Qa5 {[%clk 0:00:27]} 13. Kb1 {[%clk 0:00:43]}  c6 {[%clk 0:00:17]} 14. e5 {[%clk 0:00:22]}  Qxd5 {[%clk 0:00:15]} 15. exd6+ {[%clk 0:00:22]}  Qe6 {[%clk 0:00:15]} 16. Qc3 {[%clk 0:00:12]}  Qxd6 {[%clk 0:00:12]} 17. Bc4 {[%clk 0:00:08]}  Be6 {[%clk 0:00:09]} 18. Nf3 {[%clk 0:00:08]}  O-O-O {[%clk 0:00:08]} 19. Rxh1 {[%clk 0:00:06]}  Bxc4 {[%clk 0:00:07]} 20. Qxc4 {[%clk 0:00:06]}  Qd5 {[%clk 0:00:08]} 21. Qc3 {[%clk 0:00:05]}  c5 {[%clk 0:00:06]} 22. Be3 {[%clk 0:00:03]}  f6 {[%clk 0:00:04]} 23. Bc1 {[%clk 0:00:02]}  Kb8 {[%clk 0:00:04]} 24. a4 {[%clk 0:00:02]}  Ka8 {[%clk 0:00:04]} 25. Rf1 {[%clk 0:00:03]}  Bd6 {[%clk 0:00:03]} 26. Nd2 {[%clk 0:00:03]}  Rhe8 {[%clk 0:00:03]} 27. Nc4 {[%clk 0:00:03]}  Be5 {[%clk 0:00:03]} 28. Qb3 {[%clk 0:00:03]}  Qc6 {[%clk 0:00:02]} 29. a5 {[%clk 0:00:03]}  Qc7 {[%clk 0:00:02]} 30. Rf3 {[%clk 0:00:03]}  Bd4 {[%clk 0:00:03]} 31. Nb6+ {[%clk 0:00:02]}  axb6 {[%clk 0:00:03]} 32. axb6 {[%clk 0:00:01]}  Qc6 {[%clk 0:00:03]} 33. Qa3+ {[%clk 0:00:00]}  Kb8 {[%clk 0:00:04]} 0-1


[Site "https://www.chess.com"]

[Event "Titled Tuesday Blitz June 13 Late 2023"]
[White "zano2023"]
[Black "Rodriguez Santiago, Jaime"]
[BlackFideId "3100898"]
[WhiteElo "2109"]
[BlackElo "2025"]
[Result "0-1"]
[Round "11"]
[TimeControl "180+2"]
[Date "2023.06.13"]
[WhiteClock "0:00:24"]
[BlackClock "0:00:12"]
[Board "105"]

1. d4 {[%clk 0:03:00]}  Nf6 {[%clk 0:02:59]} 2. Nd2 {[%clk 0:03:00]}  d5 {[%clk 0:02:57]} 3. Ngf3 {[%clk 0:02:59]}  c5 {[%clk 0:02:56]} 4. e3 {[%clk 0:03:00]}  Nc6 {[%clk 0:02:56]} 5. c3 {[%clk 0:03:00]}  Bg4 {[%clk 0:02:54]} 6. Qa4 {[%clk 0:02:59]}  Bd7 {[%clk 0:02:48]} 7. Qd1 {[%clk 0:02:58]}  cxd4 {[%clk 0:02:47]} 8. exd4 {[%clk 0:02:57]}  g6 {[%clk 0:02:44]} 9. Bd3 {[%clk 0:02:57]}  Bg7 {[%clk 0:02:43]} 10. Qe2 {[%clk 0:02:57]}  O-O {[%clk 0:02:40]} 11. O-O {[%clk 0:02:57]}  Bf5 {[%clk 0:02:36]} 12. Re1 {[%clk 0:02:52]}  e6 {[%clk 0:02:31]} 13. h3 {[%clk 0:02:51]}  Bxd3 {[%clk 0:02:29]} 14. Qxd3 {[%clk 0:02:51]}  Ne8 {[%clk 0:02:26]} 15. Nf1 {[%clk 0:02:48]}  Nd6 {[%clk 0:02:25]} 16. Ng3 {[%clk 0:02:48]}  Rc8 {[%clk 0:02:22]} 17. Bg5 {[%clk 0:02:46]}  f6 {[%clk 0:02:03]} 18. Bc1 {[%clk 0:02:37]}  Qd7 {[%clk 0:01:56]} 19. h4 {[%clk 0:02:30]}  Rce8 {[%clk 0:01:35]} 20. h5 {[%clk 0:02:30]}  Ne7 {[%clk 0:01:32]} 21. Qe2 {[%clk 0:02:13]}  Nef5 {[%clk 0:01:27]} 22. hxg6 {[%clk 0:02:10]}  hxg6 {[%clk 0:01:26]} 23. Nxf5 {[%clk 0:02:04]}  Nxf5 {[%clk 0:01:25]} 24. Bf4 {[%clk 0:02:02]}  g5 {[%clk 0:01:18]} 25. Bh2 {[%clk 0:01:59]}  Kf7 {[%clk 0:01:17]} 26. b3 {[%clk 0:01:51]}  Rh8 {[%clk 0:01:17]} 27. Rad1 {[%clk 0:01:44]}  Rh7 {[%clk 0:01:00]} 28. g4 {[%clk 0:01:29]}  Nh4 {[%clk 0:00:57]} 29. Bg3 {[%clk 0:01:29]}  Reh8 {[%clk 0:00:55]} 30. Nxh4 {[%clk 0:01:25]}  gxh4 {[%clk 0:00:55]} 31. Bh2 {[%clk 0:01:25]}  h3 {[%clk 0:00:54]} 32. c4 {[%clk 0:01:22]}  Rh4 {[%clk 0:00:51]} 33. f3 {[%clk 0:01:20]}  Bf8 {[%clk 0:00:43]} 34. c5 {[%clk 0:01:18]}  Be7 {[%clk 0:00:40]} 35. b4 {[%clk 0:01:17]}  Bd8 {[%clk 0:00:39]} 36. Bg3 {[%clk 0:01:16]}  h2+ {[%clk 0:00:39]} 37. Kh1 {[%clk 0:01:15]}  Rh3 {[%clk 0:00:39]} 38. Bf4 {[%clk 0:01:13]}  R8h7 {[%clk 0:00:35]} 39. b5 {[%clk 0:01:09]}  Ba5 {[%clk 0:00:33]} 40. Rf1 {[%clk 0:01:07]}  a6 {[%clk 0:00:28]} 41. a4 {[%clk 0:01:06]}  axb5 {[%clk 0:00:27]} 42. axb5 {[%clk 0:01:04]}  Bc7 {[%clk 0:00:27]} 43. Qe3 {[%clk 0:01:01]}  Bxf4 {[%clk 0:00:26]} 44. Qxf4 {[%clk 0:01:01]}  Qxb5 {[%clk 0:00:26]} 45. Rb1 {[%clk 0:00:52]}  Qa6 {[%clk 0:00:22]} 46. Rfe1 {[%clk 0:00:49]}  Kg6 {[%clk 0:00:18]} 47. Rxe6 {[%clk 0:00:45]}  Qxe6 {[%clk 0:00:17]} 48. Qd2 {[%clk 0:00:30]}  Rxf3 {[%clk 0:00:15]} 49. Re1 {[%clk 0:00:30]}  Qxg4 {[%clk 0:00:13]} 50. Qc2+ {[%clk 0:00:27]}  Rf5 {[%clk 0:00:13]} 51. Qe2 {[%clk 0:00:24]}  Qxe2 {[%clk 0:00:12]} 0-1


[Site "https://www.chess.com"]

[Event "Titled Tuesday Blitz June 13 Late 2023"]
[White "Garmendiarov"]
[Black "Sanchez, Robert"]
[BlackFideId "2034360"]
[WhiteElo "2326"]
[BlackElo "1974"]
[Result "0-1"]
[Round "11"]
[TimeControl "180+2"]
[Date "2023.06.13"]
[WhiteClock "0:00:08"]
[BlackClock "0:00:30"]
[Board "107"]

1. d4 {[%clk 0:03:00]}  Nf6 {[%clk 0:03:00]} 2. Bf4 {[%clk 0:03:01]}  e6 {[%clk 0:03:00]} 3. e3 {[%clk 0:03:01]}  d5 {[%clk 0:03:00]} 4. Nd2 {[%clk 0:03:01]}  c5 {[%clk 0:03:00]} 5. c3 {[%clk 0:03:01]}  Nc6 {[%clk 0:03:01]} 6. Ngf3 {[%clk 0:03:01]}  Bd6 {[%clk 0:03:01]} 7. Bg3 {[%clk 0:03:02]}  Qe7 {[%clk 0:03:01]} 8. Ne5 {[%clk 0:02:58]}  Nd7 {[%clk 0:03:01]} 9. f4 {[%clk 0:02:52]}  O-O {[%clk 0:02:46]} 10. Bd3 {[%clk 0:02:45]}  f6 {[%clk 0:02:45]} 11. Bxh7+ {[%clk 0:02:19]}  Kxh7 {[%clk 0:02:45]} 12. Qh5+ {[%clk 0:02:20]}  Kg8 {[%clk 0:02:45]} 13. Ng6 {[%clk 0:02:21]}  Qe8 {[%clk 0:02:43]} 14. Nf3 {[%clk 0:01:50]}  Ne7 {[%clk 0:02:39]} 15. Qh8+ {[%clk 0:01:21]}  Kf7 {[%clk 0:02:39]} 16. Nxf8 {[%clk 0:01:20]}  Qxf8 {[%clk 0:02:34]} 17. Qh5+ {[%clk 0:01:05]}  Kg8 {[%clk 0:02:33]} 18. O-O-O {[%clk 0:00:57]}  c4 {[%clk 0:02:08]} 19. h4 {[%clk 0:00:50]}  Nf5 {[%clk 0:02:06]} 20. Bf2 {[%clk 0:00:33]}  b5 {[%clk 0:01:58]} 21. Ng5 {[%clk 0:00:27]}  fxg5 {[%clk 0:01:50]} 22. hxg5 {[%clk 0:00:28]}  b4 {[%clk 0:01:26]} 23. g6 {[%clk 0:00:26]}  Nh6 {[%clk 0:01:26]} 24. Bh4 {[%clk 0:00:19]}  bxc3 {[%clk 0:01:19]} 25. g4 {[%clk 0:00:16]}  cxb2+ {[%clk 0:00:58]} 26. Kb1 {[%clk 0:00:17]}  Nf6 {[%clk 0:00:56]} 27. Bxf6 {[%clk 0:00:17]}  Qxf6 {[%clk 0:00:56]} 28. g5 {[%clk 0:00:16]}  Qf5+ {[%clk 0:00:56]} 29. Kxb2 {[%clk 0:00:16]}  Rb8+ {[%clk 0:00:54]} 30. Kc1 {[%clk 0:00:13]}  Ba3+ {[%clk 0:00:47]} 31. Kd2 {[%clk 0:00:14]}  Qd3+ {[%clk 0:00:44]} 32. Ke1 {[%clk 0:00:15]}  Qxe3+ {[%clk 0:00:44]} 33. Kf1 {[%clk 0:00:13]}  Qxf4+ {[%clk 0:00:42]} 34. Kg1 {[%clk 0:00:12]}  Qg3+ {[%clk 0:00:40]} 35. Kf1 {[%clk 0:00:12]}  c3 {[%clk 0:00:32]} 36. gxh6 {[%clk 0:00:11]}  Ba6+ {[%clk 0:00:32]} 37. Qe2 {[%clk 0:00:08]}  Rf8# {[%clk 0:00:30]} 0-1


[Site "https://www.chess.com"]

[Event "Titled Tuesday Blitz June 13 Late 2023"]
[White "campochess"]
[Black "rikchessmx"]
[WhiteElo "2209"]
[BlackElo "2288"]
[Result "0-1"]
[Round "11"]
[TimeControl "180+2"]
[Date "2023.06.13"]
[WhiteClock "0:00:00"]
[BlackClock "0:00:45"]
[Board "108"]

1. d4 {[%clk 0:03:00]}  Nf6 {[%clk 0:02:59]} 2. Bg5 {[%clk 0:03:00]}  Ne4 {[%clk 0:02:58]} 3. h4 {[%clk 0:02:59]}  c5 {[%clk 0:02:59]} 4. d5 {[%clk 0:02:59]}  Qb6 {[%clk 0:02:57]} 5. Nc3 {[%clk 0:02:52]}  Nxc3 {[%clk 0:02:51]} 6. bxc3 {[%clk 0:02:51]}  h6 {[%clk 0:02:51]} 7. Bd2 {[%clk 0:02:44]}  d6 {[%clk 0:02:43]} 8. e4 {[%clk 0:02:44]}  Nd7 {[%clk 0:02:43]} 9. Nf3 {[%clk 0:02:43]}  g6 {[%clk 0:02:43]} 10. Be2 {[%clk 0:02:43]}  Bg7 {[%clk 0:02:43]} 11. Qc1 {[%clk 0:02:38]}  Nf6 {[%clk 0:02:40]} 12. e5 {[%clk 0:02:23]}  Nxd5 {[%clk 0:02:34]} 13. Rb1 {[%clk 0:02:17]}  Qc7 {[%clk 0:02:31]} 14. Bb5+ {[%clk 0:02:17]}  Bd7 {[%clk 0:02:30]} 15. Bxd7+ {[%clk 0:02:16]}  Qxd7 {[%clk 0:02:31]} 16. exd6 {[%clk 0:02:16]}  exd6 {[%clk 0:02:28]} 17. O-O {[%clk 0:02:16]}  O-O-O {[%clk 0:02:25]} 18. c4 {[%clk 0:02:11]}  Nc3 {[%clk 0:02:19]} 19. Bxc3 {[%clk 0:02:10]}  Bxc3 {[%clk 0:02:18]} 20. Qa3 {[%clk 0:02:10]}  Bb4 {[%clk 0:02:14]} 21. Qxa7 {[%clk 0:02:09]}  Qc6 {[%clk 0:02:11]} 22. c3 {[%clk 0:01:53]}  Bxc3 {[%clk 0:02:06]} 23. Rb6 {[%clk 0:01:52]}  Qc7 {[%clk 0:02:02]} 24. Rfb1 {[%clk 0:01:51]}  Rd7 {[%clk 0:02:00]} 25. R1b3 {[%clk 0:01:35]}  Bf6 {[%clk 0:01:54]} 26. a4 {[%clk 0:01:17]}  Qb8 {[%clk 0:01:51]} 27. Qa5 {[%clk 0:01:16]}  Bd8 {[%clk 0:01:47]} 28. Qb5 {[%clk 0:01:08]}  Bxb6 {[%clk 0:01:45]} 29. Qxb6 {[%clk 0:01:08]}  Rhd8 {[%clk 0:01:36]} 30. a5 {[%clk 0:01:08]}  Qc7 {[%clk 0:01:36]} 31. Qb5 {[%clk 0:01:08]}  Qc6 {[%clk 0:01:36]} 32. Nd2 {[%clk 0:01:02]}  Qxb5 {[%clk 0:01:33]} 33. Rxb5 {[%clk 0:00:58]}  Rc7 {[%clk 0:01:33]} 34. Ne4 {[%clk 0:00:57]}  d5 {[%clk 0:01:32]} 35. cxd5 {[%clk 0:00:57]}  Rxd5 {[%clk 0:01:31]} 36. f3 {[%clk 0:00:46]}  f5 {[%clk 0:01:28]} 37. Nc3 {[%clk 0:00:35]}  Rd4 {[%clk 0:01:26]} 38. Rb6 {[%clk 0:00:33]}  Rg7 {[%clk 0:01:21]} 39. Nb5 {[%clk 0:00:30]}  Rd1+ {[%clk 0:01:14]} 40. Kh2 {[%clk 0:00:29]}  c4 {[%clk 0:01:15]} 41. Rf6 {[%clk 0:00:28]}  Rd5 {[%clk 0:01:08]} 42. Nd6+ {[%clk 0:00:25]}  Kc7 {[%clk 0:01:08]} 43. Nxc4 {[%clk 0:00:24]}  Rc5 {[%clk 0:01:07]} 44. Nd6 {[%clk 0:00:16]}  Re7 {[%clk 0:00:54]} 45. Nf7 {[%clk 0:00:15]}  Rc6 {[%clk 0:00:50]} 46. Rxc6+ {[%clk 0:00:12]}  Kxc6 {[%clk 0:00:50]} 47. Nxh6 {[%clk 0:00:12]}  Kb5 {[%clk 0:00:50]} 48. h5 {[%clk 0:00:12]}  gxh5 {[%clk 0:00:48]} 49. Nxf5 {[%clk 0:00:12]}  Rd7 {[%clk 0:00:48]} 50. Ng3 {[%clk 0:00:09]}  Rd5 {[%clk 0:00:47]} 51. Kh3 {[%clk 0:00:08]}  Kxa5 {[%clk 0:00:47]} 52. Kh4 {[%clk 0:00:08]}  b5 {[%clk 0:00:47]} 53. Nxh5 {[%clk 0:00:08]}  b4 {[%clk 0:00:47]} 54. Nf4 {[%clk 0:00:08]}  Rd4 {[%clk 0:00:46]} 55. Kg5 {[%clk 0:00:07]}  Rxf4 {[%clk 0:00:44]} 56. Kxf4 {[%clk 0:00:00]}  b3 {[%clk 0:00:45]} 0-1


[Site "https://www.chess.com"]

[Event "Titled Tuesday Blitz June 13 Late 2023"]
[White "Celestino, Rafael Teixeira"]
[Black "Powell, Paul"]
[WhiteFideId "2108925"]
[BlackFideId "2005840"]
[WhiteElo "2247"]
[BlackElo "2157"]
[Result "1-0"]
[Round "11"]
[TimeControl "180+2"]
[Date "2023.06.13"]
[WhiteClock "0:01:45"]
[BlackClock "0:00:34"]
[Board "110"]

1. e4 {[%clk 0:03:00]}  c5 {[%clk 0:02:59]} 2. Nf3 {[%clk 0:02:57]}  d6 {[%clk 0:02:59]} 3. d4 {[%clk 0:02:54]}  cxd4 {[%clk 0:02:59]} 4. Nxd4 {[%clk 0:02:55]}  Nf6 {[%clk 0:02:59]} 5. Nc3 {[%clk 0:02:53]}  g6 {[%clk 0:02:59]} 6. Bg5 {[%clk 0:02:53]}  Bg7 {[%clk 0:02:57]} 7. Qd2 {[%clk 0:02:54]}  Nc6 {[%clk 0:02:55]} 8. O-O-O {[%clk 0:02:51]}  O-O {[%clk 0:02:50]} 9. Bh6 {[%clk 0:02:46]}  Nxd4 {[%clk 0:02:43]} 10. Bxg7 {[%clk 0:02:45]}  Nb3+ {[%clk 0:02:39]} 11. axb3 {[%clk 0:02:44]}  Kxg7 {[%clk 0:02:39]} 12. h4 {[%clk 0:02:43]}  h5 {[%clk 0:02:35]} 13. Be2 {[%clk 0:02:41]}  Qa5 {[%clk 0:02:26]} 14. Qg5 {[%clk 0:02:38]}  Qxg5+ {[%clk 0:00:55]} 15. hxg5 {[%clk 0:02:39]}  Nh7 {[%clk 0:00:55]} 16. f4 {[%clk 0:02:36]}  Be6 {[%clk 0:00:55]} 17. Nd5 {[%clk 0:02:36]}  Bxd5 {[%clk 0:00:54]} 18. Rxd5 {[%clk 0:02:37]}  Rfc8 {[%clk 0:00:52]} 19. g4 {[%clk 0:02:32]}  hxg4 {[%clk 0:00:51]} 20. Bxg4 {[%clk 0:02:33]}  Rc7 {[%clk 0:00:51]} 21. Kd2 {[%clk 0:02:15]}  Nf8 {[%clk 0:00:48]} 22. Rd3 {[%clk 0:01:46]}  Ne6 {[%clk 0:00:44]} 23. Bxe6 {[%clk 0:01:45]}  fxe6 {[%clk 0:00:44]} 24. Rdh3 {[%clk 0:01:46]}  Kf7 {[%clk 0:00:34]} 25. Rh7+ {[%clk 0:01:45]} 1-0


[Site "https://www.chess.com"]